fUSD/lending_fUSD_20251013
["ID","MTS","AMOUNT","RATE_DAILY","PERIOD"]
[391122957,1760368243134,-151.0,0.00017728,2]
[391122958,1760368243144,-200.0,0.0001773,2]
[391122959,1760368243154,-500.01,0.0001774,2]
[391122960,1760368243163,-151.0,0.0001774,2]
[391122961,1760368243173,-151.0,0.0001774,2]
[391122962,1760368243182,-151.0,0.0001774,2]
[391122963,1760368243192,-151.0,0.0001774,2]
[391122964,1760368243201,-151.0,0.0001774,2]
[391122965,1760368243211,-151.0,0.0001774,2]
[391122966,1760368243221,-151.0,0.0001774,2]
[391122967,1760368243230,-151.0,0.0001774,2]
[391122968,1760368243240,-151.0,0.0001774,2]
[391122969,1760368243250,-151.0,0.0001774,2]
[391122970,1760368243260,-151.0,0.0001774,2]
[391122971,1760368243270,-195.81300455,0.0001774,2]
[391122972,1760368243279,-151.0,0.0001774,2]
[391122973,1760368243289,-151.0,0.0001774,2]
[391122974,1760368243298,-151.0,0.0001774,2]
[391122975,1760368243313,-216.187648,0.0001774,2]
[391122976,1760368243323,-166.66,0.00017766,2]
[391122977,1760368243333,-180.62757121,0.00018,2]
[391122978,1760368243343,-10220.82304853,0.00018,2]
[391122979,1760368243352,-151.0,0.00018,2]
[391122980,1760368243361,-151.0,0.00018,2]
[391122981,1760368243371,-151.0,0.00018,2]
[391122982,1760368243381,-151.0,0.00018,2]
[391122983,1760368243390,-1104.95,0.00018026,2]
[391122984,1760368243401,-1000.0,0.00018059,2]
[391122985,1760368243411,-852.41,0.00018082,2]
[391122986,1760368243421,-1000.0,0.00018089,2]
[391122987,1760368243432,-6135.71219613,0.00018116,2]
[391122988,1760368243443,-175.94,0.00018135,2]
[391122989,1760368243452,-694.86,0.00018153,2]
[391122990,1760368243462,-10220.82304853,0.000182,2]
[391122991,1760368243472,-151.0,0.000182,2]
[391122992,1760368243482,-8470.01240356,0.00018233,2]
[391122993,1760368243491,-151.0,0.00018247,2]
[391122994,1760368243501,-500.0,0.00018255,2]
[391122995,1760368243511,-166.66,0.000183,2]
[391122996,1760368243520,-10220.82304853,0.000184,2]
[391122997,1760368243529,-151.666692,0.000184,2]
[391122998,1760368243538,-151.0,0.000184,2]
[391122999,1760368243547,-31014.42047804,0.000185,2]
[391123000,1760368243558,-10220.82304853,0.000185,2]
[391123001,1760368243572,-151.0,0.000185,2]
[391123002,1760368243583,-151.0,0.000185,2]
[391123003,1760368243593,-152.405667,0.000185,2]
[391123004,1760368243603,-1500.0,0.00018607,2]
[391123005,1760368243612,-1500.0,0.00018637,2]
[391123006,1760368243621,-10220.82304853,0.000187,2]
[391123007,1760368243632,-852.41,0.0001876,2]
[391123008,1760368243642,-279.73803566,0.0001878,2]
[391123009,1760368243652,-166.66,0.00018833,2]
[391123010,1760368243662,-875268.73522425,0.00018874,2]
[391123011,1760368243671,-605951.11839928,0.0001888,2]
[391123012,1760368243681,-151.0,0.0001888,2]
[391123013,1760368243691,-151.0,0.0001888,2]
[391123014,1760368243700,-151.0,0.0001888,2]
[391123015,1760368243710,-291.436328,0.0001888,2]
[391123016,1760368243719,-151.0,0.0001888,2]
[391123017,1760368243728,-151.0,0.0001888,2]
[391123018,1760368243737,-151.0,0.0001888,2]
[391123019,1760368243747,-151.0,0.0001888,2]
[391123020,1760368243756,-151.0,0.0001888,2]
[391123022,1760368243765,-151.0,0.0001888,2]
[391123023,1760368243775,-151.0,0.0001888,2]
[391123024,1760368243785,-151.0,0.0001888,2]
[391123025,1760368243795,-151.0,0.0001888,2]
[391123026,1760368243804,-151.0,0.0001888,2]
[391123027,1760368243818,-151.0,0.0001888,2]
[391123028,1760368243827,-355.546028,0.0001888,2]
[391123029,1760368243836,-355.546028,0.0001888,2]
[391123030,1760368243846,-151.0,0.0001888,2]
[391123031,1760368243855,-355.546028,0.0001888,2]
[391123032,1760368243863,-355.546028,0.0001888,2]
[391123033,1760368243873,-189.004686,0.0001888,2]
[391123034,1760368243882,-151.0,0.0001888,2]
[391123035,1760368243892,-189.004686,0.0001888,2]
[391123036,1760368243902,-151.0,0.0001888,2]
[391123037,1760368243911,-189.004686,0.0001888,2]
[391123038,1760368243920,-159.191952,0.0001888,2]
[391123039,1760368243930,-189.004686,0.0001888,2]
[391123040,1760368243939,-151.0,0.0001888,2]
[391123041,1760368243949,-151.0,0.0001888,2]
[391123042,1760368243958,-418.088824,0.0001888,2]
[391123043,1760368243967,-418.088824,0.0001888,2]
[391123044,1760368243976,-418.088824,0.0001888,2]
[391123045,1760368243985,-418.088824,0.0001888,2]
[391123046,1760368243995,-151.0,0.0001888,2]
[391123047,1760368244005,-151.0,0.0001888,2]
[391123048,1760368244015,-151.0,0.0001888,2]
[391123049,1760368244024,-151.0,0.0001888,2]
[391123050,1760368244034,-151.0,0.0001888,2]
[391123051,1760368244043,-151.0,0.0001888,2]
[391123052,1760368244052,-151.0,0.0001888,2]
[391123053,1760368244064,-151.0,0.0001888,2]
[391123054,1760368244073,-152.607874,0.0001888,2]
[391123055,1760368244083,-189.373446,0.0001888,2]
[391123056,1760368244092,-151.0,0.0001888,2]
[391123057,1760368244101,-182.739697,0.0001888,2]
[391123058,1760368244111,-968.514388,0.0001888,2]
[391123059,1760368244121,-968.514388,0.0001888,2]
[391123060,1760368244131,-250.877766,0.0001888,2]
[391123061,1760368244142,-968.514388,0.0001888,2]
[391123062,1760368244152,-250.877766,0.0001888,2]
[391123063,1760368244161,-968.514388,0.0001888,2]
[391123064,1760368244171,-250.877766,0.0001888,2]
[391123065,1760368244181,-250.877766,0.0001888,2]
[391123066,1760368244190,-151.0,0.0001888,2]
[391123067,1760368244199,-151.0,0.0001888,2]
[391123068,1760368244210,-152.697479,0.0001888,2]
[391123069,1760368244219,-151.0,0.0001888,2]
[391123070,1760368244228,-151.0,0.0001888,2]
[391123071,1760368244239,-151.0,0.0001888,2]
[391123072,1760368244248,-151.0,0.0001888,2]
[391123073,1760368244258,-151.0,0.0001888,2]
[391123074,1760368244267,-190.819768,0.0001888,2]
[391123075,1760368244276,-151.0,0.0001888,2]
[391123076,1760368244285,-151.0,0.0001888,2]
[391123077,1760368244296,-195.889558,0.0001888,2]
[391123078,1760368244312,-195.889558,0.0001888,2]
[391123079,1760368244321,-195.889558,0.0001888,2]
[391123080,1760368244331,-151.0,0.0001888,2]
[391123081,1760368244340,-151.0,0.0001888,2]
[391123082,1760368244351,-195.889558,0.0001888,2]
[391123083,1760368244361,-151.0,0.0001888,2]
[391123084,1760368244371,-151.0,0.0001888,2]
[391123085,1760368244382,-151.0,0.0001888,2]
[391123086,1760368244391,-151.0,0.0001888,2]
[391123087,1760368244401,-10220.82304853,0.000189,2]
[391123088,1760368244410,-6135.71219613,0.00018922,2]
[391123089,1760368244420,-150.0,0.00018957,2]
[391123090,1760368244429,-150.0,0.00018957,2]
[391123091,1760368244439,-150.0,0.00018957,2]
[391123092,1760368244448,-3292.0,0.00018959,2]
[391123093,1760368244458,-300.0,0.00018996,2]
[391123094,1760368244468,-151.0,0.00018997,2]
[391123095,1760368244478,-151.0,0.00018997,2]
[391123096,1760368244487,-151.0,0.00018997,2]
[391123097,1760368244497,-151.0,0.00018997,2]
[391123098,1760368244506,-151.0,0.00018997,2]
[391123099,1760368244515,-151.0,0.00018997,2]
[391123100,1760368244782,-151.0,0.00018997,2]
[391123101,1760368244792,-151.0,0.00018997,2]
[391123102,1760368244803,-151.0,0.00018997,2]
[391123103,1760368244815,-151.0,0.00018997,2]
[391123104,1760368244824,-151.0,0.00018997,2]
[391123105,1760368244833,-262.970165,0.00018997,2]
[391123106,1760368244844,-262.970165,0.00018997,2]
[391123107,1760368244854,-262.970165,0.00018997,2]
[391123108,1760368244863,-262.970165,0.00018997,2]
[391123109,1760368244873,-151.0,0.00018997,2]
[391123110,1760368244883,-151.0,0.00018997,2]
[391123111,1760368244892,-151.0,0.00018997,2]
[391123112,1760368244902,-151.0,0.00018997,2]
[391123113,1760368244911,-151.0,0.00018997,2]
[391123114,1760368244920,-151.0,0.00018997,2]
[391123115,1760368244929,-151.0,0.00018997,2]
[391123116,1760368244939,-261.263792,0.00018997,2]
[391123117,1760368244949,-151.0,0.00018997,2]
[391123118,1760368244958,-151.0,0.00018997,2]
[391123119,1760368244968,-151.0,0.00018997,2]
[391123120,1760368244977,-151.0,0.00018997,2]
[391123121,1760368244986,-151.0,0.00018997,2]
[391123122,1760368244995,-151.0,0.00018997,2]
[391123123,1760368245004,-151.0,0.00018997,2]
[391123124,1760368245014,-151.0,0.00018997,2]
[391123125,1760368245023,-151.0,0.00018997,2]
[391123126,1760368245033,-355.546028,0.00018997,2]
[391123127,1760368245042,-355.546028,0.00018997,2]
[391123128,1760368245052,-152.042138,0.00018997,2]
[391123129,1760368245062,-355.546028,0.00018997,2]
[391123130,1760368245072,-355.546028,0.00018997,2]
[391123131,1760368245081,-189.004686,0.00018997,2]
[391123132,1760368245090,-151.0,0.00018997,2]
[391123133,1760368245100,-189.004686,0.00018997,2]
[391123134,1760368245110,-151.0,0.00018997,2]
[391123135,1760368245119,-189.004686,0.00018997,2]
[391123136,1760368245128,-189.004686,0.00018997,2]
[391123137,1760368245138,-151.0,0.00018997,2]
[391123138,1760368245147,-418.088824,0.00018997,2]
[391123139,1760368245157,-418.088824,0.00018997,2]
[391123140,1760368245166,-418.088824,0.00018997,2]
[391123141,1760368245176,-418.088824,0.00018997,2]
[391123142,1760368245185,-151.0,0.00018997,2]
[391123143,1760368245195,-151.0,0.00018997,2]
[391123144,1760368245205,-288.77176,0.00018997,2]
[391123145,1760368245215,-151.0,0.00018997,2]
[391123146,1760368245225,-151.0,0.00018997,2]
[391123147,1760368245234,-151.0,0.00018997,2]
[391123148,1760368245244,-151.0,0.00018997,2]
[391123149,1760368245254,-247.861337,0.00018997,2]
[391123150,1760368245263,-151.0,0.00018997,2]
[391123151,1760368245273,-968.514388,0.00018997,2]
[391123152,1760368245282,-968.514388,0.00018997,2]
[391123153,1760368245292,-250.877766,0.00018997,2]
[391123154,1760368245306,-968.514388,0.00018997,2]
[391123155,1760368245319,-250.877766,0.00018997,2]
[391123156,1760368245329,-968.514388,0.00018997,2]
[391123157,1760368245339,-250.877766,0.00018997,2]
[391123158,1760368245350,-250.877766,0.00018997,2]
[391123159,1760368245360,-151.0,0.00018997,2]
[391123160,1760368245370,-190.653668,0.00018997,2]
[391123161,1760368245380,-151.0,0.00018997,2]
[391123162,1760368245390,-151.0,0.00018997,2]
[391123163,1760368245399,-151.0,0.00018997,2]
[391123164,1760368245409,-151.0,0.00018997,2]
[391123165,1760368245419,-250.249586,0.00018997,2]
[391123166,1760368245428,-151.0,0.00018997,2]
[391123167,1760368245438,-300.0,0.00018999,2]
[391123168,1760368245447,-151.0,0.00019,2]
[391123169,1760368245457,-167.35427191,0.00019,2]
[391123170,1760368245466,-362871.0731172,0.00019,2]
[391123171,1760368245476,-151.0,0.00019,2]
[391123172,1760368245485,-151.0,0.00019,2]
[391123173,1760368245494,-151.0,0.00019,2]
[391123174,1760368245504,-151.0,0.00019,2]
[391123175,1760368245513,-151.0,0.00019,2]
[391123176,1760368245523,-151.0,0.00019,2]
[391123177,1760368245532,-151.0,0.00019,2]
[391123178,1760368245542,-151.0,0.00019,2]
[391123179,1760368245551,-5601.50322345,0.00019,2]
[391123180,1760368245562,-151.0,0.00019,2]
[391123181,1760368245572,-262.970165,0.00019,2]
[391123182,1760368245582,-262.970165,0.00019,2]
[391123183,1760368245591,-262.970165,0.00019,2]
[391123184,1760368245600,-262.970165,0.00019,2]
[391123185,1760368245610,-151.0,0.00019,2]
[391123186,1760368245620,-300.0,0.00019,3]
[391123187,1760368245629,-300.0,0.00019,3]
[391123188,1760368245639,-300.0,0.00019,3]
[391123189,1760368245648,-300.0,0.00019,3]
[391123190,1760368245657,-300.0,0.00019,3]
[391123191,1760368245667,-261.815446,0.00019,2]
[391123192,1760368245676,-151.0,0.00019,2]
[391123193,1760368245686,-151.0,0.00019,2]
[391123194,1760368245695,-151.0,0.00019,2]
[391123195,1760368245705,-151.0,0.00019,2]
[391123196,1760368245714,-151.0,0.00019,2]
[391123197,1760368245723,-151.0,0.00019,2]
[391123198,1760368245733,-151.0,0.00019,2]
[391123199,1760368245742,-151.0,0.00019,2]
[391123200,1760368245751,-355.546028,0.00019,2]
[391123201,1760368245761,-355.546028,0.00019,2]
[391123202,1760368245770,-355.546028,0.00019,2]
[391123203,1760368245779,-355.546028,0.00019,2]
[391123204,1760368245789,-189.004686,0.00019,2]
[391123205,1760368245798,-189.004686,0.00019,2]
[391123206,1760368245807,-151.0,0.00019,2]
[391123207,1760368245818,-189.004686,0.00019,2]
[391123208,1760368245827,-189.004686,0.00019,2]
[391123209,1760368245837,-151.0,0.00019,2]
[391123210,1760368245847,-418.088824,0.00019,2]
[391123211,1760368245856,-418.088824,0.00019,2]
[391123212,1760368245866,-418.088824,0.00019,2]
[391123213,1760368245875,-418.088824,0.00019,2]
[391123214,1760368245884,-300.0,0.00019,2]
[391123215,1760368245894,-151.0,0.00019,2]
[391123216,1760368245904,-151.0,0.00019,2]
[391123217,1760368245914,-1439.03858,0.00019,2]
[391123218,1760368245923,-151.0,0.00019,2]
[391123219,1760368245932,-151.0,0.00019,2]
[391123220,1760368245942,-151.0,0.00019,2]
[391123221,1760368245951,-151.0,0.00019,2]
[391123222,1760368245961,-175.658012,0.00019,2]
[391123223,1760368245971,-968.514388,0.00019,2]
[391123224,1760368245981,-968.514388,0.00019,2]
[391123225,1760368245995,-250.877766,0.00019,2]
[391123226,1760368246004,-968.514388,0.00019,2]
[391123227,1760368246015,-250.877766,0.00019,2]
[391123228,1760368246024,-968.514388,0.00019,2]
[391123229,1760368246034,-250.877766,0.00019,2]
[391123230,1760368246044,-250.877766,0.00019,2]
[391123231,1760368246053,-151.0,0.00019,2]
[391123232,1760368246064,-151.0,0.00019,2]
[391123233,1760368246074,-151.0,0.00019,2]
[391123234,1760368246083,-151.0,0.00019,2]
[391123235,1760368246094,-151.0,0.00019,2]
[391123236,1760368246104,-151.0,0.00019,2]
[391123237,1760368246115,-151.0,0.00019,2]
[391123238,1760368246125,-195.889558,0.00019,2]
[391123239,1760368246134,-195.889558,0.00019,2]
[391123240,1760368246144,-195.889558,0.00019,2]
[391123241,1760368246154,-151.0,0.00019,2]
[391123242,1760368246164,-151.0,0.00019,2]
[391123243,1760368246174,-195.889558,0.00019,2]
[391123244,1760368246183,-151.0,0.00019,2]
[391123245,1760368246193,-151.0,0.00019,2]
[391123246,1760368246203,-223.078869,0.00019,2]
[391123247,1760368246215,-161.66668499,0.00019003,2]
[391123248,1760368246224,-302.85637029,0.00019004,2]
[391123249,1760368246234,-77473.82027807,0.00019005,2]
[391123250,1760368246244,-8470.01240356,0.00019067,2]
[391123251,1760368246254,-10220.82304853,0.000191,2]
[391123252,1760368246264,-4013.0,0.00019133,2]
[391123253,1760368246273,-556.0,0.00019133,2]
[391123254,1760368246283,-6441.0,0.00019133,2]
[391123255,1760368246293,-12342.82,0.00019151,2]
[391123256,1760368246305,-2000.0,0.00019155,2]
[391123257,1760368246319,-151.0,0.00019178,2]
[391123258,1760368246330,-4000.0,0.00019178,2]
[391123259,1760368246340,-2006.92,0.00019178,30]
[391123261,1760368246351,-68129.83,0.00019178,2]
[391123262,1760368246360,-348.94653887,0.00019178,2]
[391123263,1760368246371,-300.0,0.00019178,2]
[391123264,1760368246382,-300.0,0.00019178,2]
[391123265,1760368246392,-407.373776,0.00019178,2]
[391123267,1760368246403,-586.77530958,0.00019185,2]
[391123268,1760368246413,-10220.82304853,0.000193,2]
[391123269,1760368246423,-852.41,0.00019438,2]
[391123270,1760368246433,-10220.82304853,0.000195,2]
[391123272,1760368246442,-150.0,0.00019575,2]
[391123274,1760368246452,-749.0,0.00019575,2]
[391123275,1760368246463,-1266.0,0.00019575,2]
[391123276,1760368246474,-3406.0,0.00019575,2]
[391123277,1760368246483,-2049.0,0.00019575,2]
[391123278,1760368246493,-1309.0,0.00019575,2]
[391123279,1760368246503,-604.0,0.00019575,2]
[391123280,1760368246512,-571.0,0.00019575,2]
[391123281,1760368246523,-1588.0,0.00019575,2]
[391123282,1760368246533,-816.0,0.00019575,2]
[391123283,1760368246543,-151.0,0.00019575,7]
[391123284,1760368246554,-151.0,0.00019575,7]
[391123285,1760368246569,-151.0,0.00019575,7]
[391123286,1760368246579,-151.0,0.00019575,7]
[391123287,1760368246588,-151.0,0.00019575,7]
[391123288,1760368246598,-151.0,0.00019575,7]
[391123289,1760368246608,-151.0,0.00019575,7]
[391123290,1760368246617,-151.0,0.00019575,7]
[391123291,1760368246627,-262.970165,0.00019575,7]
[391123292,1760368246637,-262.970165,0.00019575,7]
[391123293,1760368246647,-262.970165,0.00019575,7]
[391123294,1760368246662,-262.970165,0.00019575,7]
[391123295,1760368246672,-151.0,0.00019575,7]
[391123296,1760368246683,-151.0,0.00019575,7]
[391123297,1760368246693,-151.0,0.00019575,7]
[391123298,1760368246703,-151.0,0.00019575,7]
[391123299,1760368246713,-151.0,0.00019575,7]
[391123300,1760368246724,-180.018992,0.00019575,7]
[391123301,1760368246733,-151.0,0.00019575,7]
[391123302,1760368246743,-151.0,0.00019575,7]
[391123303,1760368246758,-188.918122,0.00019575,7]
[391123304,1760368246780,-355.546028,0.00019575,7]
[391123305,1760368246789,-355.546028,0.00019575,7]
[391123306,1760368246799,-355.546028,0.00019575,7]
[391123307,1760368246809,-355.546036,0.00019575,7]
[391123308,1760368246822,-189.004686,0.00019575,7]
[391123309,1760368246832,-189.004686,0.00019575,7]
[391123310,1760368246842,-151.0,0.00019575,7]
[391123311,1760368246852,-189.004686,0.00019575,7]
[391123312,1760368246862,-189.004694,0.00019575,7]
[391123313,1760368246873,-418.088824,0.00019575,7]
[391123314,1760368246883,-418.088824,0.00019575,7]
[391123315,1760368246892,-418.088824,0.00019575,7]
[391123316,1760368246902,-418.088821,0.00019575,7]
[391123317,1760368246911,-151.0,0.00019575,7]
[391123318,1760368246921,-151.0,0.00019575,7]
[391123319,1760368246931,-151.0,0.00019575,7]
[391123320,1760368246940,-151.0,0.00019575,7]
[391123321,1760368246949,-151.0,0.00019575,7]
[391123322,1760368246959,-968.514388,0.00019575,7]
[391123323,1760368246969,-968.514388,0.00019575,7]
[391123324,1760368246980,-250.877766,0.00019575,2]
[391123325,1760368246991,-968.514388,0.00019575,7]
[391123326,1760368247003,-250.877766,0.00019575,2]
[391123327,1760368247012,-968.514386,0.00019575,7]
[391123328,1760368247022,-250.877766,0.00019575,2]
[391123329,1760368247032,-250.877765,0.00019575,2]
[391123330,1760368247041,-151.0,0.00019575,7]
[391123331,1760368247051,-151.0,0.00019575,7]
[391123332,1760368247062,-151.0,0.00019575,7]
[391123333,1760368247072,-151.0,0.00019575,7]
[391123334,1760368247082,-274.52740449,0.00019575,7]
[391123335,1760368247092,-151.0,0.00019575,7]
[391123336,1760368247103,-195.889558,0.00019575,7]
[391123337,1760368247113,-195.889558,0.00019575,7]
[391123338,1760368247124,-195.889558,0.00019575,7]
[391123339,1760368247134,-151.0,0.00019575,7]
[391123340,1760368247144,-195.889554,0.00019575,7]
[391123341,1760368247154,-151.0,0.00019575,7]
[391123342,1760368247163,-151.0,0.00019575,7]
[391123343,1760368247173,-10220.82304853,0.000197,2]
[391123344,1760368247183,-2000.0,0.000197,2]
[391123345,1760368247296,-2500.0,0.00019703,2]
[391123346,1760368247310,-82708.0,0.00019726,2]
[391123347,1760368247323,-167.13199796,0.00019726,2]
[391123348,1760368247332,-6135.71219613,0.00019728,2]
[391123349,1760368247342,-546.38,0.00019797,2]
[391123350,1760368247353,-168.14,0.00019797,2]
[391123351,1760368247363,-150.0,0.00019797,2]
[391123352,1760368247372,-546.38,0.00019797,2]
[391123353,1760368247383,-1104.95,0.00019828,2]
[391123354,1760368247391,-162.83317854,0.00019832,2]
[391123355,1760368247401,-542.33412398,0.00019885,2]
[391123356,1760368247411,-4857.64591226,0.000199,3]
[391123357,1760368247421,-10220.82304853,0.000199,2]
[391123358,1760368247431,-8470.01240356,0.000199,2]
[391123359,1760368247440,-200.0,0.000199,2]
[391123360,1760368247450,-151.0,0.0001998,7]
[391123361,1760368247460,-151.0,0.0001998,7]
[391123362,1760368247471,-151.0,0.0001998,7]
[391123363,1760368247480,-151.0,0.0001998,7]
[391123364,1760368247490,-266.572656,0.0001998,7]
[391123365,1760368247499,-151.0,0.0001998,7]
[391123366,1760368247508,-151.0,0.0001998,7]
[391123367,1760368247517,-262.970165,0.0001998,7]
[391123368,1760368247527,-262.970165,0.0001998,7]
[391123369,1760368247536,-262.970165,0.0001998,7]
[391123370,1760368247545,-262.970164,0.0001998,7]
[391123371,1760368247554,-249.610296,0.0001998,7]
[391123372,1760368247565,-1000.0,0.0002,4]
[391123373,1760368247574,-11191.26260512,0.0002,2]
[391123374,1760368247584,-10780.60419134,0.0002,2]
[391123375,1760368247593,-40000.0,0.0002,2]
[391123376,1760368247603,-1445.23975639,0.0002,5]
[391123377,1760368247612,-25274.78083665,0.0002,2]
[391123378,1760368247621,-4641.01437973,0.0002,2]
[391123379,1760368247631,-11454.25471729,0.0002,5]
[391123380,1760368247641,-8300.0,0.0002,4]
[391123381,1760368247650,-3950.0,0.0002,2]
[391123382,1760368247660,-7282.73038256,0.0002,2]
[391123383,1760368247670,-7207.9440874,0.0002,5]
[391123384,1760368247680,-90901.69611167,0.0002,2]
[391123385,1760368247691,-8698.37365548,0.0002,2]
[391123386,1760368247700,-202.93,0.0002,2]
[391123387,1760368247710,-475.32661018,0.0002,7]
[391123388,1760368247721,-292.97835806,0.0002,2]
[391123389,1760368247731,-2500.11,0.00020001,2]
[391123390,1760368247743,-5063.4419519,0.0002001,2]
[391123391,1760368247752,-2500.1,0.00020022,2]
[391123392,1760368247762,-694.86,0.00020065,2]
[391123393,1760368247771,-213.64,0.00020077,2]
[391123394,1760368247780,-2500.22,0.00020082,2]
[391123395,1760368247790,-10220.82304853,0.000201,2]
[391123396,1760368247806,-2500.87,0.00020101,2]
[391123397,1760368247819,-2500.41,0.00020105,2]
[391123398,1760368247829,-852.41,0.00020116,2]
[391123399,1760368247839,-2500.41,0.00020133,2]
[391123400,1760368247850,-2500.87,0.00020162,2]
[391123401,1760368247859,-556.92,0.00020187,2]
[391123402,1760368247868,-150.0,0.00020188,2]
[391123403,1760368247880,-4280.91,0.00020189,2]
[391123404,1760368247889,-25000.0,0.0002019,2]
[391123405,1760368247898,-150.0,0.000202,2]
[391123406,1760368247907,-5000.0,0.0002023,2]
[391123407,1760368247917,-5000.0,0.00020243,2]
[391123408,1760368247926,-2500.11,0.00020248,2]
[391123409,1760368247935,-3000.0,0.00020251,2]
[391123410,1760368247945,-5000.0,0.00020253,2]
[391123411,1760368247954,-10220.82304853,0.000203,2]
[391123412,1760368247963,-5000.0,0.00020305,2]
[391123413,1760368247973,-5000.0,0.00020315,2]
[391123414,1760368247983,-2500.1,0.00020349,2]
[391123415,1760368247993,-5000.0,0.00020381,2]
[391123416,1760368248002,-150.0,0.00020403,2]
[391123417,1760368248011,-5000.0,0.00020407,2]
[391123418,1760368248021,-10220.82304853,0.000205,2]
[391123419,1760368248030,-25000.0,0.00020501,2]
[391123420,1760368248039,-2500.27,0.00020508,2]
[391123421,1760368248049,-150.0,0.0002053,2]
[391123422,1760368248058,-6135.71219613,0.00020535,2]
[391123423,1760368248070,-21219.82,0.00020548,2]
[391123424,1760368248079,-1000.0,0.00020548,2]
[391123425,1760368248088,-636.0,0.00020548,2]
[391123426,1760368248098,-150.0,0.00020555,2]
[391123427,1760368248107,-150.0,0.00020561,2]
[391123428,1760368248117,-5000.0,0.00020586,2]
[391123429,1760368248126,-2500.27,0.00020596,2]
[391123430,1760368248136,-160.87,0.00020619,2]
[391123431,1760368248146,-175.94,0.00020619,2]
[391123432,1760368248155,-175.94,0.00020619,2]
[391123433,1760368248164,-229.53,0.00020619,2]
[391123434,1760368248173,-175.94,0.00020619,2]
[391123435,1760368248182,-175.94,0.00020619,2]
[391123436,1760368248191,-175.94,0.00020619,2]
[391123437,1760368248201,-175.94,0.00020619,2]
[391123438,1760368248210,-175.94,0.00020619,2]
[391123439,1760368248219,-175.94,0.00020619,2]
[391123440,1760368248228,-175.94,0.00020619,2]
[391123441,1760368248238,-175.94,0.00020619,2]
[391123442,1760368248247,-175.94,0.00020619,2]
[391123443,1760368248257,-830.51,0.00020619,2]
[391123444,1760368248266,-150.0,0.00020619,2]
[391123445,1760368248275,-5000.0,0.00020631,2]
[391123446,1760368248285,-16299.86899893,0.00020658,2]
[391123447,1760368248295,-5000.0,0.00020665,2]
[391123448,1760368248309,-18971.34,0.00020666,2]
[391123449,1760368248320,-259.50190121,0.00020695,2]
[391123450,1760368248330,-22370.32614475,0.000207,2]
[391123451,1760368248339,-10220.82304853,0.000207,2]
[391123452,1760368248350,-8470.01240356,0.00020733,2]
[391123453,1760368248359,-2500.22,0.00020755,2]
[391123454,1760368248368,-25000.0,0.00020758,2]
[391123455,1760368248378,-852.41,0.00020795,2]
[391123456,1760368248388,-1122.45069585,0.00020799,2]
[391123457,1760368248398,-172.2038179,0.00020826,2]
[391123458,1760368248407,-77597.51456094,0.0002085,2]
[391123459,1760368248417,-4267.0,0.00020855,2]
[391123460,1760368248426,-150.0,0.00020858,2]
[391123461,1760368248436,-5000.0,0.00020879,2]